[Event "EYCC Open U18 2018"]
[Site "Riga"]
[Date "2018.08.26"]
[Round "6"]
[White "Stauskas, Lukas"]
[Black "Erenberg, Ariel"]
[Result "1-0"]
[ECO "E32"]
[WhiteElo "2256"]
[BlackElo "2399"]
[Annotator "NA"]
[PlyCount "143"]
[EventDate "2018.08.20"]
[EventType "swiss"]
[EventCountry "LAT"]
[SourceTitle "playchess.com"]
[Source "ChessBase"]
[SourceQuality "1"]
[TimeControl "40/5400+30:1800+30"]

1. d4 {[%emt 0:00:00]} Nf6 {[%emt 0:00:00]} 2. c4 {[%emt 0:00:00]} e6 {[%emt 0:00:00]} 3. Nc3 {[%emt 0:00:00]} Bb4 {[%emt 0:00:00]} 4. Qc2 {[%emt 0:00:04]} O-O {[%emt 0:00:00]} 5. Nf3 {[%emt 0:00:09]} d5 {[%emt 0:00:24]} 6. cxd5 {[%emt 0:00:58]} exd5 {[%emt 0:00:31]} 7. Bg5 {[%emt 0:01:33]} h6 {[%emt 0:00:02]} 8. Bh4 {[%emt 0:01:22]} c5 {[%emt 0:00:50]} 9. dxc5 {[%emt 0:05:42]} Nbd7 {[%emt 0:00:54]} 10. e3 {[%emt 0:01:08]} Nxc5 {[%emt 0:00:29]} 11. a3 {[%emt 0:17:15]} Bxc3+ {[%emt 0:01:33]} 12. Qxc3 {[%emt 0:00:05]} Nce4 {[%emt 0:01:28]} 13. Qd4 {[%emt 0:04:26]} Bg4 {[%emt 0:06:43]} 14. Be2 {[%emt 0:02:34]} Qa5+ {[%emt 0:07:26]} 15. b4 {[%emt 0:00:54]} Qb6 {[%emt 0:02:08]} 16. Qxb6 {[%emt 0:15:43]} axb6 {[%emt 0:00:03]} 17. h3 {[%emt 0:00:44]} Bd7 $14 {[%emt 0:06:11]} 18. Bxf6 {[%emt 0:02:59]} Nxf6 {[%emt 0:00:25]} 19. Ne5 {[%emt 0:01:37]} Be6 {[%emt 0:04:56]} 20. f3 {[%emt 0:02:28]} Rfc8 {[%emt 0:03:40]} 21. Kd2 {[%emt 0:01:39]} Ne8 {[%emt 0:02:05]} 22. Rhc1 {[%emt 0:01:15]} Rxc1 {[%emt 0:01:53]} 23. Kxc1 {[%emt 0:00:13]} Nd6 {[%emt 0:00:35]} 24. Kd2 {[%emt 0:06:26]} g5 {[%emt 0:02:01]} 25. Bd3 {[%emt 0:02:34]} Kg7 {[%emt 0:08:22]} 26. f4 {[%emt 0:01:52]} d4 {[%emt 0:03:40]} 27. fxg5 {[%emt 0:01:24]} dxe3+ {[%emt 0:00:12]} 28. Kxe3 {[%emt 0:00:05]} hxg5 {[%emt 0:00:04]} 29. Nf3 {[%emt 0:01:28]} Kf6 {[%emt 0:00:49]} 30. h4 {[%emt 0:06:30]} gxh4 {[%emt 0:06:16]} 31. Nxh4 {[%emt 0:00:06]} Bd5 {[%emt 0:03:52]} 32. Kf4 {[%emt 0:00:49]} Rc8 {[%emt 0:04:18]} 33. g4 {[%emt 0:01:42]} Rc3 {[%emt 0:01:48]} 34. g5+ {[%emt 0:00:58]} Ke6 {[%emt 0:01:35]} 35. Be2 {[%emt 0:05:42]} Kd7 {[%emt 0:03:47]} 36. Nf5 {[%emt 0:03:12]} Nxf5 {[%emt 0:05:52]} 37. Kxf5 {[%emt 0:00:12]} Ke7 {[%emt 0:00:22]} 38. Kf4 {[%emt 0:01:11]} Rc2 {[%emt 0:02:38]} 39. Rd1 {[%emt 0:02:07]} Bc6 {[%emt 0:01:17]} 40. Re1 {[%emt 0:00:00]} Kf8 {[%emt 0:00:00]} 41. Bh5 {[%emt 0:20:46]} Rc4+ {[%emt 0:06:29]} 42. Ke5 {[%emt 0:00:26]} Rh4 {[%emt 0:01:34]} 43. Bd1 {[%emt 0:00:25]} Kg7 {[%emt 0:00:54]} 44. Rf1 {[%emt 0:03:54]} Rh3 {[%emt 0:09:28]} 45. a4 {[%emt 0:01:07]} Rg3 {[%emt 0:00:36]} 46. Kf4 {[%emt 0:02:42]} Ra3 {[%emt 0:02:27]} 47. b5 {[%emt 0:00:15]} Bd7 {[%emt 0:00:58]} 48. Rf3 {[%emt 0:01:46]} Ra1 {[%emt 0:00:43]} 49. Bb3 {[%emt 0:00:29]} Be6 {[%emt 0:08:34]} 50. Bxe6 {[%emt 0:01:02]} Rxa4+ {[%emt 0:00:25]} 51. Ke5 {[%emt 0:00:05]} fxe6 {[%emt 0:00:05]} 52. Kxe6 {[%emt 0:00:15]} Kg6 {[%emt 0:00:35]} 53. Rf5 {[%emt 0:00:32]} Rc4 {[%emt 0:05:00]} 54. Rd5 {[%emt 0:00:19]} Rc5 {[%emt 0:00:54]} 55. Kd6 {[%emt 0:00:14]} Rc1 {[%emt 0:01:36]} 56. Kd7 {[%emt 0:00:04]} Rc5 {[%emt 0:03:11]} 57. Rd6+ {[%emt 0:00:22]} Kxg5 {[%emt 0:00:03]} 58. Rxb6 {[%emt 0:00:07]} Rf5 {[%emt 0:02:55]} 59. Rxb7 {[%emt 0:00:17]} Rf7+ {[%emt 0:00:04]} 60. Kc6 {[%emt 0:00:18]} Rf6+ {[%emt 0:00:10]} 61. Kc5 {[%emt 0:00:56]} Rf5+ {[%emt 0:00:54]} 62. Kb6 {[%emt 0:01:02]} Kf6 {[%emt 0:00:05]} 63. Rc7 {[%emt 0:00:11]} Ke6 {[%emt 0:00:06]} 64. Rc1 {[%emt 0:00:24]} Kd7 {[%emt 0:00:19]} 65. Ka6 {[%emt 0:00:40]} Rf2 {[%emt 0:00:17]} 66. b6 {[%emt 0:00:08]} Ra2+ {[%emt 0:00:38]} 67. Kb7 {[%emt 0:00:06]} Rb2 {[%emt 0:00:10]} 68. Ka7 {[%emt 0:00:07]} Ra2+ {[%emt 0:00:05]} 69. Kb8 {[%emt 0:00:06]} Rb2 {[%emt 0:00:09]} 70. b7 {[%emt 0:00:05]} Rb3 {[%emt 0:00:52]} 71. Rd1+ {[%emt 0:00:08]} Kc6 {[%emt 0:00:27]} 72. Kc8 {[%emt 0:00:35] Kd5} 1-0